fUSD/lending_fUSD_20240217
["ID","MTS","AMOUNT","RATE_DAILY","PERIOD"]
[314261705,1708128101810,550.0,0.00025,3]
[314261706,1708128103123,600.0,0.00027,3]
[314261707,1708128104197,650.0,0.00029,3]
[314261708,1708128105275,700.0,0.00031,3]
[314261710,1708128324708,518.01970828,0.000295,3]
[314261716,1708128557116,-989.63311902,0.00031904,4]
[314261717,1708128557137,-989.63311902,0.00031905,4]
[314261718,1708128557156,-907.91626196,0.00031905,4]
[314261722,1708128624117,170.23,0.000266,2]
[314261727,1708128631897,-526.40835608,0.00031907,2]
[314261728,1708128632012,-264.17164392,0.00031907,2]
[314261729,1708128632026,-155.0,0.00031921,4]
[314261730,1708128632036,-155.54053823,0.00031922,2]
[314261731,1708128632046,-281.12119243,0.00032007,120]
[314261732,1708128632057,-255.75924873,0.00032022,4]
[314261733,1708128632068,-346.77203781,0.00032023,4]
[314261734,1708128632078,-1026.35528505,0.00032024,4]
[314261735,1708128632089,-10549.57651424,0.00032024,2]
[314261736,1708128632101,-292.16600001,0.00032024,2]
[314261737,1708128632115,-5258.54974123,0.00032024,2]
[314261738,1708128632129,-499.6034895,0.00032024,2]
[314261739,1708128632146,-267313.26042777,0.00032024,2]
[314261772,1708128637837,-744.98008457,0.00032024,2]
[314261773,1708128637851,-741.27723955,0.00032024,2]
[314261774,1708128637865,-322.4103271,0.00032024,2]
[314261775,1708128637877,-98.4785078,0.00032125,2]
[314261776,1708128637891,-313.89851893,0.00032125,2]
[314261777,1708128637904,-1636.62769994,0.00032125,2]
[314261778,1708128637952,-4378.11375763,0.00032125,2]
[314261779,1708128637962,-876.84,0.00032125,2]
[314261780,1708128637972,-155.54053818,0.00032382,2]
[314261781,1708128637983,-1254.05433052,0.0003273,2]
[314261782,1708128637993,-427.33,0.0003273,2]
[314261783,1708128638003,-1123.43,0.0003273,90]
[314261784,1708128638013,-155.54053818,0.00032842,2]
[314261785,1708128638023,-152.57,0.00033225,10]
[314261786,1708128638033,-200.0,0.0003325,2]
[314261787,1708128638043,-177.27,0.00033259,2]
[314261788,1708128638053,-250.0,0.00033285,2]
[314261789,1708128638062,-2276.52,0.00033295,2]
[314261790,1708128638072,-155.54053818,0.00033302,2]
[314261791,1708128638082,-150.0,0.00033303,2]
[314261792,1708128638092,-2000.0,0.00033329,2]
[314261793,1708128638102,-150.0,0.00033381,2]
[314261794,1708128638113,-500.0,0.00033697,2]
[314261795,1708128638122,-155.67,0.00033702,2]
[314261796,1708128638133,-155.54053818,0.00033761,2]
[314261797,1708128638143,-167.6,0.0003409,2]
[314261798,1708128638153,-790.58,0.00034171,2]
[314261799,1708128638163,-2987.66011144,0.00034189,10]
[314261800,1708128638173,-155.54053818,0.00034221,2]
[314261801,1708128638183,-3873.21,0.00034224,2]
[314261802,1708128638193,-250.0,0.0003425,2]
[314261803,1708128638203,-2847.69220905,0.00034511,7]
[314261804,1708128638214,-484.23223,0.0003452,2]
[314261805,1708128638225,-6706.981756,0.0003452,2]
[314261806,1708128638235,-423.703201,0.0003452,2]
[314261807,1708128638245,-1558.6,0.00034521,2]
[314261808,1708128638255,-155.54053818,0.00034681,2]
[314261809,1708128638266,-1339.7351067,0.00034732,2]
[314261810,1708128638276,-11390.7688362,0.0003478,7]
[314261811,1708128638287,-5695.3844181,0.00034784,7]
[314261813,1708128638297,-8342.42671001,0.0003479,2]
[314261814,1708128638307,-8342.42670999,0.0003479,2]
[314261815,1708128638318,-726.348345,0.00034794,2]
[314261816,1708128638330,-10060.472634,0.00034794,2]
[314261818,1708128638341,-635.554802,0.00034794,2]
[314261820,1708128638351,-6333.83610395,0.00034799,2]
[314261822,1708128638362,-6333.83610394,0.00034799,2]
[314261823,1708128638372,-1339.7351067,0.00034888,2]
[314261824,1708128638383,-17086.1532543,0.0003489,7]
[314261825,1708128638393,-25954.13921772,0.000349,2]
[314261826,1708128638405,-11390.7688362,0.00034921,7]
[314261827,1708128638416,-177.27,0.00034922,2]
[314261828,1708128638426,-968.46446,0.00034931,2]
[314261829,1708128638436,-13413.963512,0.00034931,2]
[314261830,1708128638446,-847.406402,0.00034931,2]
[314261831,1708128638456,-2276.52,0.00034939,2]
[314261832,1708128638465,-1000.0,0.00034999,5]
[314261833,1708128638475,-155.0,0.00035,4]
[314261834,1708128638485,-11390.7688362,0.00035038,8]
[314261835,1708128638495,-17266.31,0.00035049,2]
[314261836,1708128638505,-11390.7688362,0.00035058,8]
[314261837,1708128638515,-1210.580575,0.00035068,2]
[314261838,1708128638525,-16767.45439,0.00035068,2]
[314261839,1708128638535,-1059.258003,0.00035068,2]
[314261840,1708128638545,-250.0,0.00035071,111]
[314261841,1708128638555,-155.54053818,0.00035141,2]
[314261842,1708128638565,-2847.69220905,0.0003524,8]
[314261843,1708128638575,-2000.0,0.0003525,2]
[314261844,1708128638584,-200.0,0.0003525,2]
[314261845,1708128638594,-1874.22629,0.0003525,2]
[314261846,1708128638604,-192.97,0.0003526,2]
[314261847,1708128638615,-163.92,0.00035263,2]
[314261848,1708128638626,-800.0,0.00035286,2]
[314261849,1708128638638,-17086.1532543,0.00035332,8]
[314261850,1708128638649,-1694.812805,0.00035342,2]
[314261851,1708128638662,-23474.436146,0.00035342,2]
[314261852,1708128638672,-1482.961204,0.00035342,2]
[314261853,1708128638682,-1339.7351067,0.00035389,2]
[314261854,1708128638693,-205.0,0.00035494,2]
[314261855,1708128638704,-2847.69220905,0.00035592,9]
[314261856,1708128638714,-155.54053818,0.00035601,2]
[314261857,1708128638724,-2000.0,0.00035602,2]
[314261858,1708128638736,-200.0,0.00035602,2]
[314261859,1708128638746,-200.0,0.00035616,2]
[314261860,1708128638756,-1500.0,0.00035616,10]
[314261861,1708128638769,-2847.69220905,0.00035692,9]
[314261862,1708128638779,-1558.6,0.00035798,2]
[314261863,1708128638790,-2847.69220905,0.00035806,9]
[314261864,1708128638800,-1339.73510673,0.00035865,2]
[314261865,1708128638811,-171.83,0.00035891,2]
[314261866,1708128638821,-152.26,0.00035954,2]
[314261867,1708128638831,-2000.0,0.00035959,2]
[314261868,1708128638841,-200.0,0.00035959,2]
[314261869,1708128638850,-2847.69220905,0.00035967,9]
[314261870,1708128638860,-1874.2263,0.0003597,2]
[314261871,1708128638870,-175.00079002,0.0003598,2]
[314261872,1708128638881,-14238.4610453,0.0003599,9]
[314261873,1708128638891,-1936.92892,0.00036,2]
[314261874,1708128638902,-26827.927024,0.00036,2]
[314261875,1708128638913,-1694.812805,0.00036,2]
[314261876,1708128638923,-155.54053818,0.00036061,2]
[314261877,1708128638933,-498.76,0.00036099,2]
[314261878,1708128638943,-150.0,0.00036153,2]
[314261879,1708128638953,-153.09,0.00036313,2]
[314261880,1708128638962,-200.0,0.00036318,2]
[314261881,1708128638972,-152.26,0.00036354,2]
[314261882,1708128638982,-8342.42670999,0.00036381,2]
[314261883,1708128638992,-6333.83610394,0.00036381,2]
[314261884,1708128639001,-790.58,0.00036435,2]
[314261885,1708128639011,-158.0,0.00036456,7]
[314261886,1708128639021,-155.54053818,0.0003652,2]
[314261887,1708128639034,-155.89,0.00036567,2]
[314261888,1708128639044,-2276.52,0.00036583,2]
[314261889,1708128639053,-177.27,0.00036585,2]
[314261890,1708128639063,-152.26,0.00036753,2]
[314261891,1708128639073,-155.0,0.000369,2]
[314261892,1708128639082,-177.38,0.000369,2]
[314261893,1708128639094,-150.0,0.000369,2]
[314261894,1708128639103,-155.54053818,0.0003698,2]
[314261895,1708128639113,-150.0,0.0003699,2]
[314261896,1708128639122,-250.0,0.00037,2]
[314261897,1708128639133,-150.0,0.00037,2]
[314261898,1708128639142,-150.0,0.00037,2]
[314261899,1708128639152,-158.0,0.00037004,7]
[314261900,1708128639162,-1558.6,0.00037075,2]
[314261901,1708128639171,-20501.36827496,0.00037143,2]
[314261902,1708128639181,-143652.0,0.00037146,2]
[314261903,1708128639192,-152.26,0.00037153,2]
[314261904,1708128639202,-163.92,0.00037203,2]
[314261905,1708128639212,-1874.2263,0.0003722,2]
[314261906,1708128639223,-168.77,0.00037342,2]
[314261907,1708128639234,-2203.39872076,0.00037399,14]
[314261908,1708128639244,-1189.74028943,0.00037399,14]
[314261909,1708128639256,-200.0,0.00037407,2]
[314261910,1708128639266,-8870.67669287,0.0003742,14]
[314261911,1708128639276,-4746.26093781,0.00037431,13]
[314261912,1708128639286,-155.54053818,0.0003744,2]
[314261913,1708128639296,-32519.71829153,0.00037443,13]
[314261914,1708128639309,-15446.86618848,0.00037443,12]
[314261915,1708128639319,-177.38,0.00037448,2]
[314261916,1708128639330,-150.0,0.00037448,2]
[314261917,1708128639341,-150.0,0.00037548,2]
[314261918,1708128639350,-220.99844038,0.00037548,2]
[314261919,1708128639362,-158.0,0.00037552,7]
[314261920,1708128639371,-152.26,0.00037552,2]
[314261921,1708128639382,-752.8291338,0.00037577,2]
[314261922,1708128639393,-752.82913379,0.00037658,2]
[314261923,1708128639403,-180.0,0.00037677,2]
[314261924,1708128639413,-173.28,0.000377,3]
[314261925,1708128639423,-752.82913379,0.00037739,2]
[314261926,1708128639434,-1000.0,0.000378,2]
[314261927,1708128639445,-152.66873991,0.000378,2]
[314261928,1708128639456,-752.82913379,0.00037819,2]
[314261929,1708128639466,-155.89,0.0003786,2]
[314261930,1708128639476,-5916.41807169,0.0003788,2]
[314261931,1708128639486,-4858.85406522,0.00037896,11]
[314261932,1708128639495,-1140.59955463,0.000379,3]
[314261933,1708128639505,-176.59916814,0.000379,2]
[314261934,1708128639516,-4585.6,0.000379,2]
[314261935,1708128639526,-7017.99,0.000379,30]
[314261936,1708128639536,-752.82913379,0.000379,2]
[314261937,1708128639546,-166871.841536,0.000379,3]
[314261938,1708128639556,-7017.99,0.000379,2]
[314261939,1708128639565,-155.54053818,0.000379,2]
[314261940,1708128639575,-738.93327804,0.000379,28]
[314261941,1708128639585,-194.16846825,0.000379,7]
[314261942,1708128639595,-1643.28966977,0.000379,2]
[314261943,1708128639604,-2622.93524259,0.000379,2]
[314261944,1708128639614,-1412.29034784,0.000379,2]
[314261945,1708128639623,-4585.6,0.000379,30]
[314261946,1708128639633,-2012.77136857,0.000379,2]
[314261947,1708128639643,-152.26,0.00037952,2]
[314261948,1708128639656,-83435.920768,0.00037986,3]
[314261949,1708128639665,-83435.920768,0.00037987,3]
[314261950,1708128639675,-333743.683072,0.00037989,3]
[314261951,1708128639685,-170.94811091,0.00037996,2]
[314261952,1708128639695,-500.0,0.00037996,2]
[314261953,1708128639705,-500.0,0.00037996,2]
[314261954,1708128639715,-500.0,0.00037996,2]
[314261955,1708128639726,-500.0,0.00037996,2]
[314261956,1708128639736,-500.0,0.00037996,2]
[314261957,1708128639749,-500.0,0.00037996,2]
[314261958,1708128639759,-500.0,0.00037996,2]
[314261959,1708128639771,-500.0,0.00037996,2]
[314261960,1708128639781,-500.0,0.00037996,2]
[314261961,1708128639791,-500.0,0.00037996,2]
[314261962,1708128639801,-500.0,0.00037996,2]
[314261963,1708128639811,-500.0,0.00037996,2]
[314261964,1708128639821,-500.0,0.00037996,2]
[314261965,1708128639830,-500.0,0.00037996,2]
[314261966,1708128639840,-500.0,0.00037996,2]
[314261967,1708128639850,-500.0,0.00037996,2]
[314261968,1708128639859,-500.0,0.00037996,2]
[314261969,1708128639871,-500.0,0.00037996,2]
[314261970,1708128639881,-500.0,0.00037996,2]
[314261971,1708128639892,-500.0,0.00037996,2]
[314261972,1708128639902,-177.38,0.00037996,2]
[314261973,1708128639912,-150.0,0.00037996,2]
[314261974,1708128639922,-164010.94619968,0.00037997,2]
[314261975,1708128639933,-150.0,0.00037999,2]
[314261976,1708128639943,-300.0,0.00037999,7]
[314261977,1708128639953,-450.0,0.00037999,12]
[314261978,1708128639963,-300.0,0.00037999,17]
[314261979,1708128639972,-248.16852788,0.00037999,2]
[314261980,1708128639982,-207.21148723,0.00037999,2]
[314261981,1708128639992,-248.16852788,0.00037999,2]
[314261982,1708128640001,-207.21148723,0.00037999,2]
[314261983,1708128640011,-471.84988748,0.00038,2]
[314261984,1708128640021,-483.35366092,0.00038,2]
[314261985,1708128640030,-17302.69426626,0.00038,2]
[314261986,1708128640040,-2888721.38113756,0.00038,5]
[314261987,1708128640050,-935.51394409,0.00038,2]
[314261988,1708128640060,-1638864.20418875,0.00038,2]
[314261989,1708128640070,-150.0,0.00038096,2]
[314261990,1708128640079,-158.0,0.000381,7]
[314261991,1708128640089,-2276.52,0.00038226,2]
[314261992,1708128640108,-177.27,0.00038248,2]
[314261996,1708128640347,-155.0,0.0003827,2]
[314261998,1708128640358,-152.26,0.00038351,2]
[314261999,1708128640367,-1558.6,0.00038352,2]
[314262000,1708128640376,-151.0,0.00038356,7]
[314262002,1708128640387,-151.0,0.00038356,7]
[314262004,1708128640396,-174.84,0.00038356,2]
[314262006,1708128640405,-151.0,0.00038356,7]
[314262008,1708128640415,-151.0,0.00038356,7]
[314262010,1708128640424,-151.0,0.00038356,7]
[314262011,1708128640433,-151.0,0.00038356,7]
[314262012,1708128640443,-151.0,0.00038356,7]
[314262013,1708128640453,-151.0,0.00038356,7]
[314262014,1708128640462,-151.0,0.00038356,7]
[314262015,1708128640471,-151.0,0.00038356,7]
[314262017,1708128640481,-152.16,0.00038356,2]
[314262018,1708128640490,-151.0,0.00038356,7]
[314262019,1708128640499,-151.0,0.00038356,7]
[314262020,1708128640508,-151.0,0.00038356,7]
[314262021,1708128640517,-151.0,0.00038356,7]
[314262022,1708128640526,-151.0,0.00038356,7]
[314262023,1708128640535,-151.0,0.00038356,7]
[314262024,1708128640544,-189.10516,0.00038356,7]
[314262025,1708128640553,-191.849121,0.00038356,7]
[314262026,1708128640566,-598.97,0.00038356,15]
[314262027,1708128640575,-151.0,0.00038356,7]
[314262028,1708128640585,-151.0,0.00038356,7]
[314262029,1708128640594,-151.0,0.00038356,7]
[314262030,1708128640604,-151.0,0.00038356,7]
[314262031,1708128640613,-151.0,0.00038356,7]
[314262032,1708128640623,-151.0,0.00038356,7]
[314262033,1708128640632,-151.0,0.00038356,7]
[314262034,1708128640642,-151.0,0.00038356,7]
[314262035,1708128640858,-151.0,0.00038356,7]
[314262036,1708128640868,-151.0,0.00038356,7]
[314262037,1708128640879,-151.0,0.00038356,2]
[314262038,1708128640888,-151.0,0.00038356,2]
[314262039,1708128640898,-151.0,0.00038356,2]
[314262040,1708128640907,-151.0,0.00038356,2]
[314262041,1708128640917,-151.0,0.00038356,2]
[314262042,1708128640926,-151.0,0.00038356,2]
[314262043,1708128640935,-151.0,0.00038356,7]
[314262044,1708128640945,-151.0,0.00038356,2]
[314262045,1708128640954,-151.0,0.00038356,7]
[314262046,1708128640964,-151.0,0.00038356,2]
[314262047,1708128640973,-151.0,0.00038356,2]
[314262048,1708128640982,-151.0,0.00038356,2]
[314262049,1708128640991,-151.0,0.00038356,2]
[314262050,1708128641001,-151.0,0.00038356,2]
[314262051,1708128641010,-151.0,0.00038356,2]
[314262052,1708128641020,-151.0,0.00038356,2]
[314262053,1708128641029,-151.0,0.00038356,7]
[314262054,1708128641038,-151.0,0.00038356,7]
[314262055,1708128641048,-151.0,0.00038356,7]
[314262056,1708128641057,-151.0,0.00038356,7]
[314262057,1708128641067,-151.0,0.00038356,7]
[314262058,1708128641077,-295.498585,0.00038356,7]
[314262059,1708128641086,-156.62,0.00038439,2]
[314262060,1708128641096,-1874.22629,0.0003847,2]
[314262061,1708128641105,-7046.0,0.000385,10]
[314262062,1708128641115,-177.38,0.00038544,2]
[314262063,1708128641124,-150.0,0.00038544,2]
[314262064,1708128641134,-205.0,0.00038557,9]
[314262065,1708128641143,-8342.42670999,0.00038559,2]
[314262066,1708128641152,-6333.83610394,0.00038559,2]
[314262067,1708128641161,-150.0,0.00038644,2]
[314262068,1708128641171,-158.0,0.00038648,7]
[314262069,1708128641180,-790.58,0.00038699,2]
[314262070,1708128641190,-152.26,0.00038751,2]
[314262071,1708128641199,-192.97,0.00038786,2]
[314262072,1708128641208,-4858.85406519,0.00038896,12]
[314262073,1708128641218,-10000.0,0.00039,10]
[314262074,1708128641227,-12634.46,0.00039,2]
[314262075,1708128641237,-177.38,0.00039092,2]
[314262076,1708128641246,-150.0,0.00039092,2]
[314262077,1708128641255,-163.92,0.00039143,2]
[314262078,1708128641265,-152.26,0.00039151,2]
[314262079,1708128641274,-155.89,0.00039153,2]
[314262080,1708128641283,-9683.34,0.00039178,2]
[314262081,1708128641293,-150.0,0.00039192,2]
[314262082,1708128641305,-158.0,0.00039196,7]
[314262083,1708128641314,-523.51,0.0003926,2]
[314262084,1708128641324,-150.0,0.00039508,2]
[314262085,1708128641333,-152.26,0.0003955,2]
[314262086,1708128641343,-150.0,0.00039583,2]
[314262087,1708128641354,-1558.6,0.0003963,2]
[314262088,1708128641363,-155.0,0.0003964,2]
[314262089,1708128641373,-177.38,0.0003964,2]
[314262090,1708128641383,-150.0,0.0003964,2]
[314262091,1708128641393,-150.0,0.00039643,2]
[314262092,1708128641403,-150.0,0.00039657,2]
[314262093,1708128641413,-150.0,0.00039688,2]
[314262095,1708128641422,-800.0,0.00039697,2]
[314262096,1708128641432,-173.28,0.000397,4]
[314262097,1708128641442,-152.66873982,0.0003972,5]
[314262098,1708128641451,-1874.2263,0.0003972,2]
[314262099,1708128641461,-300.0,0.0003973,2]
[314262100,1708128641470,-150.0,0.00039738,2]
[314262101,1708128641480,-177.31122357,0.0003974,2]
[314262102,1708128641489,-150.0,0.0003974,2]
[314262103,1708128641499,-150.0,0.00039742,2]
[314262104,1708128641508,-158.0,0.00039744,7]
[314262105,1708128641518,-151.021799,0.00039748,39]
[314262106,1708128641528,-150.0,0.00039761,2]
[314262107,1708128641538,-150.0,0.00039773,2]
[314262108,1708128641547,-12936.0,0.000398,2]
[314262109,1708128641556,-151.0,0.000398,7]
[314262110,1708128641565,-151.0,0.000398,7]
[314262111,1708128641575,-344.63827272,0.0003981,12]
[314262112,1708128641584,-150.0,0.00039817,2]
[314262113,1708128641594,-150.0,0.00039824,2]
[314262114,1708128641604,-150.0,0.00039824,2]
[314262115,1708128641613,-150.0,0.00039836,2]
[314262116,1708128641623,-150.0,0.00039841,2]
[314262117,1708128641633,-2276.52,0.0003987,2]
[314262118,1708128641642,-248.16852788,0.00039879,2]
[314262119,1708128641654,-207.21148723,0.00039879,2]
[314262120,1708128641664,-1525896.37748556,0.0003988,2]
[314262121,1708128641673,-151.0,0.0003988,7]
[314262122,1708128641682,-151.0,0.0003988,7]
[314262123,1708128641692,-151.0,0.0003988,7]
[314262124,1708128641701,-151.0,0.0003988,7]
[314262125,1708128641710,-151.0,0.0003988,7]
[314262126,1708128641720,-151.0,0.0003988,7]
[314262127,1708128641729,-151.0,0.0003988,7]
[314262128,1708128641739,-210.425388,0.0003988,7]
[314262129,1708128641748,-151.0,0.0003988,2]
[314262130,1708128641758,-151.0,0.0003988,2]
[314262131,1708128641767,-17302.69426626,0.0003988,2]
[314262132,1708128641776,-4858.85406519,0.00039897,13]
[314262133,1708128641785,-35472.83302539,0.000399,3]
[314262134,1708128641794,-300.0,0.000399,2]
[314262135,1708128641804,-150.0,0.00039905,2]
[314262136,1708128641814,-150.0,0.00039907,2]
[314262137,1708128641824,-177.27,0.00039911,2]
[314262138,1708128641833,-150.0,0.00039915,2]
[314262139,1708128641845,-150.0,0.00039976,2]
[314262140,1708128641855,-150.0,0.00039991,2]
[314262141,1708128641865,-150.0,0.00039992,2]
[314262142,1708128641875,-200.0,0.0004,30]
[314262143,1708128641885,-255.0,0.0004,12]
[314262144,1708128641895,-38000.0,0.0004,5]
[314262145,1708128641904,-1000.0,0.0004,2]
[314262146,1708128641914,-150.0,0.00040005,2]
[314262147,1708128641923,-150.0,0.00040034,2]
[314262148,1708128641934,-150.0,0.00040055,2]
[314262149,1708128641943,-200.0,0.00040065,15]
[314262150,1708128641952,-150.0,0.00040078,2]
[314262151,1708128641962,-150.0,0.00040084,2]
[314262152,1708128641971,-150.0,0.00040103,2]
[314262153,1708128641980,-150.0,0.00040109,2]
[314262154,1708128641990,-151.021799,0.00040148,40]
[314262155,1708128641999,-150.0,0.00040158,2]
[314262156,1708128642008,-150.0,0.00040169,2]
[314262157,1708128642018,-150.0,0.00040173,2]
[314262158,1708128642029,-300.0,0.00040179,2]
[314262159,1708128642039,-177.38,0.00040188,2]
[314262160,1708128642049,-150.0,0.00040188,2]
[314262161,1708128642058,-150.0,0.0004019,2]
[314262162,1708128642067,-150.0,0.00040192,2]
[314262163,1708128642076,-150.0,0.00040193,2]
[314262164,1708128642085,-150.0,0.00040197,2]
[314262165,1708128642094,-150.0,0.00040199,2]
[314262166,1708128642103,-150.0,0.00040202,2]
[314262167,1708128642113,-300.0,0.00040209,2]
[314262168,1708128642122,-150.0,0.00040212,2]
[314262169,1708128642132,-150.0,0.00040223,2]
[314262170,1708128642140,-150.0,0.00040229,2]
[314262171,1708128642149,-150.0,0.00040248,2]
[314262172,1708128642159,-150.0,0.00040252,2]
[314262173,1708128642168,-150.0,0.00040254,2]
[314262174,1708128642177,-150.0,0.00040265,2]
[314262175,1708128642186,-1500.0,0.00040277,2]
[314262176,1708128642195,-150.0,0.00040279,2]
[314262177,1708128642204,-150.0,0.00040279,2]
[314262178,1708128642213,-158.0,0.00040292,7]
[314262179,1708128642223,-150.0,0.00040294,2]
[314262180,1708128642232,-150.0,0.000403,2]
[314262181,1708128642241,-150.0,0.000403,2]
[314262182,1708128642251,-1500.0,0.00040308,2]
[314262183,1708128642261,-150.0,0.00040315,2]
[314262184,1708128642270,-150.0,0.00040319,2]
[314262185,1708128642279,-150.0,0.00040322,2]
[314262186,1708128642288,-1000.0,0.00040327,5]
[314262187,1708128642298,-150.0,0.00040338,2]
[314262188,1708128642307,-150.0,0.00040341,2]
[314262189,1708128642317,-150.0,0.00040353,2]
[314262190,1708128642326,-150.0,0.00040357,2]
[314262191,1708128642335,-150.0,0.0004036,2]
[314262192,1708128642344,-150.0,0.00040379,2]
[314262193,1708128642353,-1500.0,0.00040393,2]
[314262194,1708128642363,-738.93327802,0.000404,32]
[314262195,1708128642372,-300.0,0.00040413,2]
[314262196,1708128642381,-150.0,0.00040416,2]
[314262197,1708128642391,-150.0,0.0004042,2]
[314262198,1708128642401,-150.0,0.00040424,2]
[314262199,1708128642410,-387.40312369,0.00040427,2]
[314262200,1708128642421,-150.0,0.00040433,2]
[314262201,1708128642430,-150.0,0.00040436,2]
[314262202,1708128642440,-156.62,0.00040436,2]
[314262203,1708128642449,-155.89,0.00040446,2]
[314262204,1708128642458,-151.021799,0.00040448,40]
[314262205,1708128642467,-150.0,0.00040448,2]
[314262206,1708128642476,-150.0,0.00040451,2]
[314262207,1708128642485,-150.0,0.00040454,2]
[314262208,1708128642495,-1500.0,0.00040488,2]
[314262209,1708128642504,-150.0,0.00040496,2]
[314262210,1708128642514,-150.0,0.00040496,2]
[314262211,1708128642523,-1000.0,0.000405,2]
[314262212,1708128642533,-150.0,0.0004051,2]
[314262213,1708128642542,-150.0,0.00040514,2]
[314262214,1708128642551,-179.84757379,0.0004052,2]
[314262215,1708128642561,-185.01090773,0.0004053,2]
[314262216,1708128642570,-150.0,0.00040537,2]
[314262217,1708128642579,-1103.81052363,0.00040549,2]
[314262218,1708128642588,-200.0,0.00040569,20]
[314262219,1708128642596,-200.0,0.0004057,20]
[314262220,1708128642606,-150.0,0.00040577,2]
[314262221,1708128642615,-342.12752312,0.00040579,2]
[314262224,1708128642624,-150.0,0.00040583,2]
[314262226,1708128642634,-150.0,0.00040584,2]
[314262228,1708128642643,-1500.0,0.00040587,2]
[314262229,1708128642652,-150.0,0.00040592,4]
[314262230,1708128642663,-1500.0,0.00040592,2]
[314262231,1708128642672,-150.0,0.00040592,2]
[314262232,1708128642681,-150.0,0.00040612,2]
[314262233,1708128642690,-150.0,0.00040622,2]
[314262234,1708128642701,-150.0,0.00040628,2]
[314262235,1708128642711,-150.0,0.00040631,2]
[314262236,1708128642720,-150.0,0.00040637,2]
[314262237,1708128642729,-150.0,0.00040638,2]
[314262238,1708128642738,-150.0,0.00040642,2]
[314262239,1708128642747,-150.0,0.00040649,2]
[314262240,1708128642757,-150.0,0.0004065,2]
[314262241,1708128642766,-150.0,0.00040651,2]
[314262242,1708128642775,-150.0,0.00040656,2]
[314262243,1708128642784,-150.0,0.00040658,2]
[314262244,1708128642794,-150.0,0.00040659,2]
[314262245,1708128642804,-150.0,0.00040661,2]
[314262246,1708128642814,-150.0,0.00040668,2]
[314262247,1708128642825,-300.0,0.0004067,2]
[314262248,1708128642882,-150.0,0.00040678,2]
[314262249,1708128642894,-150.0,0.0004068,2]
[314262250,1708128642903,-300.0,0.00040681,2]
[314262251,1708128642912,-150.0,0.00040685,2]
[314262252,1708128642922,-150.0,0.00040698,2]
[314262253,1708128642931,-2940.163022,0.000407,2]
[314262254,1708128642940,-150.0,0.00040705,2]
[314262255,1708128642949,-151.0,0.00040708,7]
[314262256,1708128642959,-151.0,0.00040708,7]
[314262257,1708128642968,-27695.99354068,0.0004071,10]
[314262258,1708128642978,-150.0,0.00040715,2]
[314262259,1708128642987,-150.0,0.00040717,2]
[314262260,1708128642996,-151.0,0.00040725,7]
[314262261,1708128643005,-150.0,0.00040727,2]
[314262262,1708128643015,-150.0,0.00040731,2]
[314262263,1708128643024,-523.51,0.00040733,2]
[314262264,1708128643034,-252.07544011,0.00040736,2]
[314262265,1708128643043,-175.61868452,0.00040736,2]
[314262266,1708128643053,-8342.42670999,0.00040737,3]
[314262267,1708128643064,-6333.83610394,0.00040737,3]
[314262268,1708128643073,-151.0,0.00040738,2]